[Event "*** SCC Grand Prix: Titled Tuesday Blitz"]
[Site "Chess.com"]
[Date "2020.08.11"]
[Round "9"]
[White "Juanovic"]
[Black "UKR_Master"]
[Result "0-1"]
[WhiteElo "2084"]
[BlackElo "2301"]
[TimeControl "180+1"]
[EndTime "11:46:17 PDT"]
[Termination "UKR_Master won by resignation"]

1. e4 {[%clk 0:03:00.9]} 1... c5 {[%clk 0:02:59.8]} 2. Nf3 {[%clk 0:02:56.8]}
2... e6 {[%clk 0:03:00]} 3. Nc3 {[%clk 0:02:48.7]} 3... a6 {[%clk 0:02:59.7]} 4.
g3 {[%clk 0:02:48.4]} 4... b5 {[%clk 0:02:59.1]} 5. Bg2 {[%clk 0:02:47.8]} 5...
Bb7 {[%clk 0:02:59.8]} 6. d3 {[%clk 0:02:48.2]} 6... d6 {[%clk 0:02:59.7]} 7.
O-O {[%clk 0:02:48.4]} 7... Nd7 {[%clk 0:02:56.7]} 8. Re1 {[%clk 0:02:47.6]}
8... Ngf6 {[%clk 0:02:56.6]} 9. Bf4 {[%clk 0:02:37.5]} 9... Be7 {[%clk
0:02:55.1]} 10. e5 {[%clk 0:02:36.1]} 10... dxe5 {[%clk 0:02:55.2]} 11. Nxe5
{[%clk 0:02:35.8]} 11... Bxg2 {[%clk 0:02:55.2]} 12. Kxg2 {[%clk 0:02:35.9]}
12... Nxe5 {[%clk 0:02:55.7]} 13. Bxe5 {[%clk 0:02:36.2]} 13... O-O {[%clk
0:02:56.2]} 14. Qf3 {[%clk 0:02:35.8]} 14... Rc8 {[%clk 0:02:54.4]} 15. a4
{[%clk 0:01:58]} 15... b4 {[%clk 0:02:50.4]} 16. Ne4 {[%clk 0:01:52.4]} 16...
Nd7 {[%clk 0:02:38.7]} 17. Bd6 {[%clk 0:01:41.5]} 17... f5 {[%clk 0:01:52.6]}
18. Bxe7 {[%clk 0:01:31.5]} 18... Qxe7 {[%clk 0:01:46.8]} 19. Nd2 {[%clk
0:01:29.4]} 19... Nb6 {[%clk 0:01:45.9]} 20. a5 {[%clk 0:01:17.5]} 20... Na8
{[%clk 0:01:36.2]} 21. Nc4 {[%clk 0:01:13.5]} 21... Qf6 {[%clk 0:01:34.7]} 22.
Qb7 {[%clk 0:00:59.2]} 22... f4 {[%clk 0:01:19]} 23. f3 {[%clk 0:00:50.7]} 23...
fxg3 {[%clk 0:01:09.1]} 24. hxg3 {[%clk 0:00:50.9]} 24... Nc7 {[%clk 0:01:09.7]}
25. Rf1 {[%clk 0:00:44.4]} 25... Nd5 {[%clk 0:01:05.2]} 26. Qxa6 {[%clk
0:00:40.4]} 26... Rce8 {[%clk 0:00:55.6]} 27. Rae1 {[%clk 0:00:39.6]} 27... Qg5
{[%clk 0:00:51.9]} 28. Qd6 {[%clk 0:00:33.4]} 28... Nf4+ {[%clk 0:00:50.3]} 29.
Kf2 {[%clk 0:00:25.2]} 29... Nh3+ {[%clk 0:00:45.4]} 30. Kg2 {[%clk 0:00:22.4]}
30... Nf4+ {[%clk 0:00:45.4]} 31. Kf2 {[%clk 0:00:20.9]} 31... Ng6 {[%clk
0:00:40.3]} 32. Re4 {[%clk 0:00:15.4]} 32... Qh5 {[%clk 0:00:38.3]} 33. g4
{[%clk 0:00:13.1]} 33... Qh4+ {[%clk 0:00:36.1]} 34. Qg3 {[%clk 0:00:12.5]}
34... Qg5 {[%clk 0:00:33.8]} 35. Rfe1 {[%clk 0:00:11.6]} 35... Qd5 {[%clk
0:00:30.7]} 36. Kg2 {[%clk 0:00:06]} 36... Rf6 {[%clk 0:00:27.5]} 37. Ne5 {[%clk
0:00:04.4]} 37... Ne7 {[%clk 0:00:22.2]} 38. c4 {[%clk 0:00:03.7]} 38... bxc3
{[%clk 0:00:21.8]} 39. bxc3 {[%clk 0:00:04.6]} 39... Ref8 {[%clk 0:00:21.8]} 40.
R1e3 {[%clk 0:00:04.6]} 40... Qa2+ {[%clk 0:00:21.6]} 41. Kh3 {[%clk 0:00:04.8]}
41... Rh6+ {[%clk 0:00:18.5]} 42. Qh4 {[%clk 0:00:03.8]} 42... Rxh4+ {[%clk
0:00:18.8]} 43. Kxh4 {[%clk 0:00:04.7]} 43... Qf2+ {[%clk 0:00:19.2]} 44. Kh3
{[%clk 0:00:04.9]} 44... Rf6 {[%clk 0:00:19.9]} 45. g5 {[%clk 0:00:04.7]} 45...
Rf5 {[%clk 0:00:18.8]} 46. Ng4 {[%clk 0:00:04.3]} 46... Qf1+ {[%clk 0:00:17.5]}
47. Kg3 {[%clk 0:00:04.1]} 47... Rxg5 {[%clk 0:00:17.9]} 48. Rxe6 {[%clk
0:00:04.4]} 48... Nf5+ {[%clk 0:00:18.4]} 49. Kf4 {[%clk 0:00:04.4]} 49... Rxg4+
{[%clk 0:00:18.8]} 50. Kxg4 {[%clk 0:00:03.5]} 50... Nxe3+ {[%clk 0:00:19]} 51.
Rxe3 {[%clk 0:00:04.4]} 51... Qa1 {[%clk 0:00:18.5]} 52. Kf4 {[%clk 0:00:05.3]}
52... Qxc3 {[%clk 0:00:18.5]} 53. Re8+ {[%clk 0:00:05.4]} 53... Kf7 {[%clk
0:00:18.7]} 54. Re3 {[%clk 0:00:06.3]} 54... Qxa5 {[%clk 0:00:18.7]} 0-1

[Event "*** SCC Grand Prix: Titled Tuesday Blitz"]
[Site "Chess.com"]
[Date "2020.08.11"]
[Round "9"]
[White "annamaja"]
[Black "stolencandy13"]
[Result "0-1"]
[WhiteElo "2256"]
[BlackElo "2423"]
[TimeControl "180+1"]
[EndTime "11:46:20 PDT"]
[Termination "stolencandy13 won by resignation"]

1. e4 {[%clk 0:03:00.9]} 1... c6 {[%clk 0:02:59.4]} 2. d4 {[%clk 0:03:00.1]}
2... d5 {[%clk 0:02:59.5]} 3. exd5 {[%clk 0:02:59.4]} 3... cxd5 {[%clk
0:03:00.4]} 4. c4 {[%clk 0:02:59.7]} 4... Nf6 {[%clk 0:03:00.2]} 5. Nc3 {[%clk
0:02:59.8]} 5... e6 {[%clk 0:02:55.2]} 6. Bd3 {[%clk 0:02:59.2]} 6... dxc4
{[%clk 0:02:54.1]} 7. Bxc4 {[%clk 0:02:59.5]} 7... Bb4 {[%clk 0:02:52.5]} 8. Ne2
{[%clk 0:02:59]} 8... O-O {[%clk 0:02:50.8]} 9. O-O {[%clk 0:02:58.4]} 9... b6
{[%clk 0:02:51]} 10. Bg5 {[%clk 0:02:46.2]} 10... Bb7 {[%clk 0:02:45.9]} 11. d5
{[%clk 0:02:43.1]} 11... e5 {[%clk 0:02:39.8]} 12. Ne4 {[%clk 0:02:36.6]} 12...
Nbd7 {[%clk 0:02:08.3]} 13. a3 {[%clk 0:02:35.4]} 13... Be7 {[%clk 0:02:06.5]}
14. Nxf6+ {[%clk 0:02:11.3]} 14... Bxf6 {[%clk 0:02:03]} 15. Bxf6 {[%clk
0:01:53.7]} 15... Nxf6 {[%clk 0:01:56.3]} 16. Nc3 {[%clk 0:01:51.7]} 16... Rc8
{[%clk 0:01:54]} 17. Bb3 {[%clk 0:01:45.5]} 17... Qd6 {[%clk 0:01:47]} 18. Re1
{[%clk 0:01:38.7]} 18... Rfd8 {[%clk 0:01:43.5]} 19. Qe2 {[%clk 0:01:33.7]}
19... Nxd5 {[%clk 0:01:36.9]} 20. Nxd5 {[%clk 0:01:10.8]} 20... Bxd5 {[%clk
0:01:35.7]} 21. Bxd5 {[%clk 0:00:50.4]} 21... Qxd5 {[%clk 0:01:36.6]} 22. Qxe5
{[%clk 0:00:50]} 22... Qxe5 {[%clk 0:01:36.3]} 23. Rxe5 {[%clk 0:00:50.9]} 23...
Rc2 {[%clk 0:01:33.5]} 24. Rae1 {[%clk 0:00:47.6]} 24... g6 {[%clk 0:01:28.9]}
25. b4 {[%clk 0:00:30.4]} 25... Rdd2 {[%clk 0:01:26.6]} 26. Rf1 {[%clk
0:00:29.8]} 26... Ra2 {[%clk 0:01:19]} 27. Re3 {[%clk 0:00:29.3]} 27... Kg7
{[%clk 0:01:14.8]} 28. g3 {[%clk 0:00:25.9]} 28... b5 {[%clk 0:01:14.2]} 29. Rc3
{[%clk 0:00:22.3]} 29... a6 {[%clk 0:01:12]} 30. h4 {[%clk 0:00:20.6]} 30... h5
{[%clk 0:01:10.6]} 31. Kg2 {[%clk 0:00:20.5]} 31... Rdc2 {[%clk 0:01:00.6]} 32.
Rxc2 {[%clk 0:00:16.6]} 32... Rxc2 {[%clk 0:01:01.5]} 33. Rd1 {[%clk 0:00:17]}
33... Rc3 {[%clk 0:00:58.5]} 34. Ra1 {[%clk 0:00:16.3]} 34... Kf6 {[%clk
0:00:58.2]} 35. Kf1 {[%clk 0:00:14]} 35... Rc2 {[%clk 0:00:54.9]} 36. a4 {[%clk
0:00:13.1]} 36... Rb2 {[%clk 0:00:49.2]} 37. axb5 {[%clk 0:00:13.1]} 37... axb5
{[%clk 0:00:49.8]} 38. Ra6+ {[%clk 0:00:11.7]} 38... Kg7 {[%clk 0:00:49.4]} 39.
Rb6 {[%clk 0:00:07.9]} 39... Rxb4 {[%clk 0:00:49.4]} 40. Ke2 {[%clk 0:00:07.3]}
40... Rb2+ {[%clk 0:00:49.6]} 41. Ke3 {[%clk 0:00:07.8]} 41... b4 {[%clk
0:00:49.7]} 42. f3 {[%clk 0:00:06.2]} 42... Rb1 {[%clk 0:00:48.1]} 43. g4 {[%clk
0:00:04.7]} 43... hxg4 {[%clk 0:00:46]} 44. fxg4 {[%clk 0:00:05.6]} 44... b3
{[%clk 0:00:43.7]} 45. h5 {[%clk 0:00:05.5]} 45... b2 {[%clk 0:00:37.6]} 46. Kd2
{[%clk 0:00:04]} 46... Rh1 {[%clk 0:00:31.4]} 47. Rxb2 {[%clk 0:00:03.7]} 47...
Rh2+ {[%clk 0:00:31.5]} 48. Kc3 {[%clk 0:00:03.6]} 48... Rxb2 {[%clk 0:00:31.6]}
49. Kxb2 {[%clk 0:00:04.5]} 49... gxh5 {[%clk 0:00:31.8]} 50. gxh5 {[%clk
0:00:05.4]} 50... Kh6 {[%clk 0:00:32.4]} 51. Kc3 {[%clk 0:00:04.9]} 51... Kxh5
{[%clk 0:00:32.7]} 52. Kd2 {[%clk 0:00:04.4]} 52... Kg5 {[%clk 0:00:33]} 53. Kd3
{[%clk 0:00:04]} 53... Kf4 {[%clk 0:00:32.9]} 54. Ke2 {[%clk 0:00:02.7]} 54...
f6 {[%clk 0:00:31.3]} 55. Ke1 {[%clk 0:00:02.3]} 55... Ke3 {[%clk 0:00:31.1]}
56. Kf1 {[%clk 0:00:02.3]} 56... Kf3 {[%clk 0:00:31.6]} 57. Kg1 {[%clk
0:00:02.9]} 57... f5 {[%clk 0:00:31.4]} 58. Kh1 {[%clk 0:00:02.6]} 58... Ke2
{[%clk 0:00:30.2]} 59. Kg1 {[%clk 0:00:02.5]} 59... f4 {[%clk 0:00:30.8]} 60.
Kh1 {[%clk 0:00:03]} 60... f3 {[%clk 0:00:31.6]} 61. Kh2 {[%clk 0:00:03.6]}
61... f2 {[%clk 0:00:31.8]} 62. Kg2 {[%clk 0:00:03.9]} 62... f1=Q+ {[%clk
0:00:32.1]} 0-1

[Event "*** SCC Grand Prix: Titled Tuesday Blitz"]
[Site "Chess.com"]
[Date "2020.08.11"]
[Round "9"]
[White "Vuk2000"]
[Black "FairChess_on_YouTube"]
[Result "0-1"]
[WhiteElo "2730"]
[BlackElo "2983"]
[TimeControl "180+1"]
[EndTime "11:46:21 PDT"]
[Termination "FairChess_on_YouTube won by resignation"]

1. d4 {[%clk 0:03:00.9]} 1... Nf6 {[%clk 0:02:59.6]} 2. Bg5 {[%clk 0:03:01]}
2... Ne4 {[%clk 0:02:53.9]} 3. Bf4 {[%clk 0:03:01.2]} 3... d5 {[%clk 0:02:50.6]}
4. e3 {[%clk 0:02:59.7]} 4... c5 {[%clk 0:02:49.3]} 5. c3 {[%clk 0:02:59]} 5...
Nc6 {[%clk 0:02:48]} 6. Bd3 {[%clk 0:02:56.8]} 6... Bf5 {[%clk 0:02:46.4]} 7. f3
{[%clk 0:02:42.1]} 7... cxd4 {[%clk 0:02:44.2]} 8. fxe4 {[%clk 0:02:33.7]} 8...
dxe4 {[%clk 0:02:45.1]} 9. Bb5 {[%clk 0:02:31.8]} 9... d3 {[%clk 0:02:40.8]} 10.
Nd2 {[%clk 0:02:26]} 10... Qb6 {[%clk 0:02:37.8]} 11. Qb3 {[%clk 0:02:20.5]}
11... O-O-O {[%clk 0:02:17.8]} 12. Nc4 {[%clk 0:02:11.7]} 12... Qc5 {[%clk
0:02:06.2]} 13. Bxc6 {[%clk 0:02:11.7]} 13... Qxc6 {[%clk 0:02:04.2]} 14. Ne5
{[%clk 0:02:11.3]} 14... Qa6 {[%clk 0:01:44]} 15. Qc4+ {[%clk 0:01:39.6]} 15...
Qxc4 {[%clk 0:01:43.3]} 16. Nxc4 {[%clk 0:01:40.5]} 16... g5 {[%clk 0:01:38.3]}
17. Bg3 {[%clk 0:01:36.8]} 17... h5 {[%clk 0:01:35.8]} 18. Nh3 {[%clk
0:01:34.8]} 18... f6 {[%clk 0:01:33]} 19. Rf1 {[%clk 0:01:09.5]} 19... Be6
{[%clk 0:01:25.9]} 20. Nd2 {[%clk 0:01:09]} 20... h4 {[%clk 0:01:24.8]} 21. Bf2
{[%clk 0:01:08.7]} 21... Bxh3 {[%clk 0:01:18.6]} 22. gxh3 {[%clk 0:01:08.4]}
22... f5 {[%clk 0:01:19.2]} 23. Rg1 {[%clk 0:01:03.5]} 23... Bh6 {[%clk
0:01:14.8]} 24. Nc4 {[%clk 0:01:03.5]} 24... Kd7 {[%clk 0:01:10.9]} 25. Kd2
{[%clk 0:01:01.5]} 25... Ke6 {[%clk 0:01:10.6]} 26. a4 {[%clk 0:01:00.4]} 26...
Rc8 {[%clk 0:01:09.2]} 27. Na5 {[%clk 0:00:59.7]} 27... Kd5 {[%clk 0:01:06.2]}
28. b4 {[%clk 0:00:55.8]} 28... b6 {[%clk 0:01:02.9]} 29. Nb3 {[%clk 0:00:56]}
29... e5 {[%clk 0:01:01.8]} 30. a5 {[%clk 0:00:54.4]} 30... b5 {[%clk
0:01:01.3]} 31. a6 {[%clk 0:00:54]} 31... f4 {[%clk 0:00:53.1]} 32. Ra5 {[%clk
0:00:53.6]} 32... Rhf8 {[%clk 0:00:52]} 33. Rg4 {[%clk 0:00:34.9]} 33... Rf5
{[%clk 0:00:43.7]} 34. Rxb5+ {[%clk 0:00:20.6]} 34... Kc4 {[%clk 0:00:43.1]} 35.
Rc5+ {[%clk 0:00:21]} 35... Rxc5 {[%clk 0:00:37.5]} 36. Nxc5 {[%clk 0:00:21.9]}
36... Kd5 {[%clk 0:00:37.4]} 37. Na4 {[%clk 0:00:15.7]} 37... Bf8 {[%clk
0:00:36.4]} 38. b5 {[%clk 0:00:15.5]} 38... Rf7 {[%clk 0:00:27.7]} 39. Rxg5
{[%clk 0:00:09.5]} 39... Bh6 {[%clk 0:00:24]} 40. c4+ {[%clk 0:00:03.2]} 40...
Kxc4 {[%clk 0:00:21.6]} 41. Rxe5 {[%clk 0:00:03.1]} 41... fxe3+ {[%clk
0:00:19.7]} 42. Bxe3 {[%clk 0:00:04]} 42... Rf2+ {[%clk 0:00:19.6]} 43. Ke1
{[%clk 0:00:04.5]} 43... Re2+ {[%clk 0:00:19.7]} 44. Kd1 {[%clk 0:00:05]} 44...
Rxe3 {[%clk 0:00:13.1]} 45. b6 {[%clk 0:00:04.7]} 45... Kd4 {[%clk 0:00:11.5]}
46. Rf5 {[%clk 0:00:03]} 46... Rf3 {[%clk 0:00:08.3]} 47. Rxf3 {[%clk
0:00:02.3]} 47... exf3 {[%clk 0:00:09.2]} 48. Ke1 {[%clk 0:00:02.4]} 48... d2+
{[%clk 0:00:08.5]} 49. Kd1 {[%clk 0:00:01.9]} 49... f2 {[%clk 0:00:08.9]} 0-1

[Event "*** SCC Grand Prix: Titled Tuesday Blitz"]
[Site "Chess.com"]
[Date "2020.08.11"]
[Round "9"]
[White "Noam_Vitenberg"]
[Black "Fighter008"]
[Result "0-1"]
[WhiteElo "2504"]
[BlackElo "2685"]
[TimeControl "180+1"]
[EndTime "11:46:21 PDT"]
[Termination "Fighter008 won by checkmate"]

1. Nf3 {[%clk 0:03:00.4]} 1... Nf6 {[%clk 0:02:59.7]} 2. c4 {[%clk 0:02:58.4]}
2... g6 {[%clk 0:02:59.8]} 3. Nc3 {[%clk 0:02:57.6]} 3... Bg7 {[%clk 0:03:00]}
4. e4 {[%clk 0:02:58.2]} 4... d6 {[%clk 0:03:00.2]} 5. d4 {[%clk 0:02:58.8]}
5... O-O {[%clk 0:03:00.3]} 6. Be2 {[%clk 0:02:59.4]} 6... e5 {[%clk 0:03:00.7]}
7. Be3 {[%clk 0:02:59.9]} 7... Ng4 {[%clk 0:02:59.5]} 8. Bg5 {[%clk 0:02:59.6]}
8... f6 {[%clk 0:02:59.9]} 9. Bc1 {[%clk 0:03:00.2]} 9... Nc6 {[%clk 0:02:59.8]}
10. d5 {[%clk 0:03:00.6]} 10... Ne7 {[%clk 0:02:59.8]} 11. h3 {[%clk 0:03:00.6]}
11... Nh6 {[%clk 0:02:59.8]} 12. h4 {[%clk 0:03:01.2]} 12... c6 {[%clk
0:02:54.5]} 13. h5 {[%clk 0:03:00.4]} 13... g5 {[%clk 0:02:54.8]} 14. Nh2 {[%clk
0:02:57.2]} 14... a6 {[%clk 0:02:48.4]} 15. g4 {[%clk 0:02:55.4]} 15... b5
{[%clk 0:02:44.6]} 16. dxc6 {[%clk 0:02:54.4]} 16... Be6 {[%clk 0:02:40.4]} 17.
cxb5 {[%clk 0:02:53.5]} 17... axb5 {[%clk 0:02:39.8]} 18. Bxb5 {[%clk
0:02:53.1]} 18... d5 {[%clk 0:02:39.5]} 19. exd5 {[%clk 0:02:41.7]} 19... Nxd5
{[%clk 0:02:39.5]} 20. Nxd5 {[%clk 0:02:36.8]} 20... Bxd5 {[%clk 0:02:38.7]} 21.
O-O {[%clk 0:02:34.3]} 21... Nf7 {[%clk 0:02:33.5]} 22. a4 {[%clk 0:02:31.8]}
22... Qd6 {[%clk 0:02:23.8]} 23. Qc2 {[%clk 0:02:29]} 23... e4 {[%clk
0:02:15.4]} 24. Be3 {[%clk 0:02:25.4]} 24... Qe6 {[%clk 0:02:12.3]} 25. c7
{[%clk 0:02:07.9]} 25... Ne5 {[%clk 0:02:11.4]} 26. Qe2 {[%clk 0:02:07.9]} 26...
Nf3+ {[%clk 0:02:06.8]} 27. Kh1 {[%clk 0:02:07]} 27... f5 {[%clk 0:01:58]} 28.
Rfd1 {[%clk 0:02:04.1]} 28... Kh8 {[%clk 0:01:48.7]} 29. Nxf3 {[%clk 0:01:58.6]}
29... exf3 {[%clk 0:01:47.8]} 30. Qd2 {[%clk 0:01:50.4]} 30... f4 {[%clk
0:01:39.4]} 31. Qxd5 {[%clk 0:01:48.3]} 31... Qxg4 {[%clk 0:01:39.4]} 32. Bf1
{[%clk 0:01:32.5]} 32... fxe3 {[%clk 0:01:24.7]} 33. fxe3 {[%clk 0:01:05.1]}
33... Qxh5+ {[%clk 0:01:16.6]} 34. Kg1 {[%clk 0:01:00.3]} 34... Qg4+ {[%clk
0:01:16.4]} 35. Kh1 {[%clk 0:00:53.2]} 35... Qh4+ {[%clk 0:01:14.7]} 36. Kg1
{[%clk 0:00:52.5]} 36... Qg3+ {[%clk 0:01:10.8]} 37. Kh1 {[%clk 0:00:52.3]}
37... Ra6 {[%clk 0:00:57.3]} 38. Qd6 {[%clk 0:00:20.1]} 38... Rxd6 {[%clk
0:00:52.4]} 39. Rxd6 {[%clk 0:00:20]} 39... Be5 {[%clk 0:00:49.2]} 40. Rh6
{[%clk 0:00:17.8]} 40... Kg7 {[%clk 0:00:38.2]} 41. Rh5 {[%clk 0:00:16.2]} 41...
Bxc7 {[%clk 0:00:37.6]} 42. Rc1 {[%clk 0:00:15.1]} 42... Rd8 {[%clk 0:00:30.6]}
43. Rh3 {[%clk 0:00:14.4]} 43... Qe5 {[%clk 0:00:20.4]} 44. b4 {[%clk
0:00:14.2]} 44... Rd2 {[%clk 0:00:20.1]} 45. Kg1 {[%clk 0:00:02]} 45... g4
{[%clk 0:00:18.7]} 46. Rh4 {[%clk 0:00:01.5]} 46... Qg3+ {[%clk 0:00:18.6]} 47.
Kh1 {[%clk 0:00:01.4]} 47... Rh2+ {[%clk 0:00:19.2]} 48. Rxh2 {[%clk 0:00:01.3]}
48... Qxh2# {[%clk 0:00:20.1]} 0-1

[Event "*** SCC Grand Prix: Titled Tuesday Blitz"]
[Site "Chess.com"]
[Date "2020.08.11"]
[Round "9"]
[White "1977Ivan"]
[Black "Lion-Al-Messi"]
[Result "1-0"]
[WhiteElo "2679"]
[BlackElo "2502"]
[TimeControl "180+1"]
[EndTime "11:46:23 PDT"]
[Termination "1977Ivan won by resignation"]

1. d4 {[%clk 0:03:00.9]} 1... d5 {[%clk 0:02:58.3]} 2. c4 {[%clk 0:03:01.2]}
2... c6 {[%clk 0:02:58.7]} 3. Nf3 {[%clk 0:03:00.2]} 3... Nf6 {[%clk 0:02:58.9]}
4. Nc3 {[%clk 0:03:00.7]} 4... dxc4 {[%clk 0:02:59.3]} 5. e4 {[%clk 0:03:00.3]}
5... b5 {[%clk 0:02:58.9]} 6. Be2 {[%clk 0:03:00.5]} 6... e6 {[%clk 0:02:53.8]}
7. O-O {[%clk 0:03:00.4]} 7... b4 {[%clk 0:02:51.5]} 8. e5 {[%clk 0:02:50.6]}
8... Nd5 {[%clk 0:02:51.1]} 9. Ne4 {[%clk 0:02:49.3]} 9... Ba6 {[%clk
0:02:46.4]} 10. Bg5 {[%clk 0:02:49.1]} 10... Qc7 {[%clk 0:02:45.1]} 11. Rc1
{[%clk 0:02:47.9]} 11... Nd7 {[%clk 0:02:42.9]} 12. Bxc4 {[%clk 0:02:46.9]}
12... Bxc4 {[%clk 0:02:42.9]} 13. Rxc4 {[%clk 0:02:47.7]} 13... h6 {[%clk
0:02:38.9]} 14. Bh4 {[%clk 0:02:45.9]} 14... Rc8 {[%clk 0:02:31.2]} 15. Qd2
{[%clk 0:02:25.7]} 15... a5 {[%clk 0:02:31]} 16. Rfc1 {[%clk 0:02:24.7]} 16...
g5 {[%clk 0:02:16.2]} 17. Bg3 {[%clk 0:02:23.9]} 17... Be7 {[%clk 0:02:15.8]}
18. h3 {[%clk 0:02:10.8]} 18... N7b6 {[%clk 0:02:09.5]} 19. R4c2 {[%clk
0:02:09.6]} 19... a4 {[%clk 0:02:04.9]} 20. Nd6+ {[%clk 0:01:58.4]} 20... Bxd6
{[%clk 0:01:59.8]} 21. exd6 {[%clk 0:01:59.3]} 21... Qb7 {[%clk 0:01:52.9]} 22.
Ne5 {[%clk 0:01:56.4]} 22... O-O {[%clk 0:01:35.4]} 23. Nxc6 {[%clk 0:01:35.5]}
23... b3 {[%clk 0:01:35.2]} 24. axb3 {[%clk 0:01:35]} 24... axb3 {[%clk
0:01:35.2]} 25. Rc5 {[%clk 0:01:33.7]} 25... Ra8 {[%clk 0:01:25.7]} 26. h4
{[%clk 0:01:26.4]} 26... f6 {[%clk 0:01:21.7]} 27. Qd3 {[%clk 0:01:07.5]} 27...
f5 {[%clk 0:01:19]} 28. Be5 {[%clk 0:01:04.7]} 28... Qf7 {[%clk 0:00:40.9]} 29.
hxg5 {[%clk 0:00:54]} 29... hxg5 {[%clk 0:00:40.8]} 30. Qh3 {[%clk 0:00:50.7]}
30... Qh7 {[%clk 0:00:41]} 31. Qg3 {[%clk 0:00:29.1]} 31... Qh5 {[%clk
0:00:40.9]} 32. Ne7+ {[%clk 0:00:17.5]} 32... Nxe7 {[%clk 0:00:35.6]} 33. dxe7
{[%clk 0:00:18.4]} 33... Rfe8 {[%clk 0:00:34]} 34. Rc6 {[%clk 0:00:18.8]} 34...
Nd5 {[%clk 0:00:26.7]} 35. Rxe6 {[%clk 0:00:17.7]} 35... Kf7 {[%clk 0:00:15.7]}
36. Rd6 {[%clk 0:00:16.1]} 36... Rh8 {[%clk 0:00:12.3]} 37. Bxh8 {[%clk
0:00:11.1]} 37... Rxh8 {[%clk 0:00:13.2]} 38. Qh3 {[%clk 0:00:11.3]} 38... Qxh3
{[%clk 0:00:11.8]} 39. gxh3 {[%clk 0:00:12.2]} 39... Nf4 {[%clk 0:00:12.4]} 40.
Rd8 {[%clk 0:00:11]} 40... Re8 {[%clk 0:00:10]} 41. Rc7 {[%clk 0:00:07.8]} 41...
Rxe7 {[%clk 0:00:06.8]} 42. Rxe7+ {[%clk 0:00:08.3]} 42... Kxe7 {[%clk
0:00:07.7]} 43. Rb8 {[%clk 0:00:08.4]} 43... Nxh3+ {[%clk 0:00:07.2]} 44. Kf1
{[%clk 0:00:07.9]} 44... Nf4 {[%clk 0:00:08.1]} 45. Rxb3 {[%clk 0:00:07.9]}
45... Nd5 {[%clk 0:00:07.9]} 46. Rb5 {[%clk 0:00:07.8]} 46... Kd6 {[%clk
0:00:07.9]} 47. Ke2 {[%clk 0:00:07.3]} 47... g4 {[%clk 0:00:07.7]} 48. Rc5
{[%clk 0:00:07.6]} 48... f4 {[%clk 0:00:06.3]} 49. Kd3 {[%clk 0:00:07.6]} 49...
g3 {[%clk 0:00:05.9]} 50. fxg3 {[%clk 0:00:08.5]} 50... fxg3 {[%clk 0:00:06.8]}
51. Ke4 {[%clk 0:00:08.3]} 51... g2 {[%clk 0:00:06.8]} 52. Rxd5+ {[%clk
0:00:07.8]} 1-0

[Event "*** SCC Grand Prix: Titled Tuesday Blitz"]
[Site "Chess.com"]
[Date "2020.08.11"]
[Round "9"]
[White "Khazieva_Elza"]
[Black "chenxiaoyuer"]
[Result "1-0"]
[WhiteElo "2345"]
[BlackElo "2433"]
[TimeControl "180+1"]
[EndTime "11:46:23 PDT"]
[Termination "Khazieva_Elza won on time"]

1. e4 {[%clk 0:03:00.9]} 1... c5 {[%clk 0:02:59]} 2. Nf3 {[%clk 0:03:00.9]} 2...
d6 {[%clk 0:02:59.2]} 3. d3 {[%clk 0:03:01.2]} 3... Nf6 {[%clk 0:02:59]} 4. g3
{[%clk 0:03:01.4]} 4... g6 {[%clk 0:02:58.7]} 5. Bg2 {[%clk 0:03:01.9]} 5... Bg7
{[%clk 0:02:59.4]} 6. O-O {[%clk 0:03:02.5]} 6... O-O {[%clk 0:02:59.6]} 7. Re1
{[%clk 0:03:02.5]} 7... Bg4 {[%clk 0:02:59.4]} 8. Nbd2 {[%clk 0:02:58.2]} 8...
Nc6 {[%clk 0:02:57.6]} 9. h3 {[%clk 0:02:57.6]} 9... Bxf3 {[%clk 0:02:57.6]} 10.
Nxf3 {[%clk 0:02:58.5]} 10... Rb8 {[%clk 0:02:57.6]} 11. e5 {[%clk 0:02:57.5]}
11... dxe5 {[%clk 0:02:54.9]} 12. Nxe5 {[%clk 0:02:57.4]} 12... Nxe5 {[%clk
0:02:55.8]} 13. Rxe5 {[%clk 0:02:57.5]} 13... Nd7 {[%clk 0:02:55.9]} 14. Re1
{[%clk 0:02:54.3]} 14... Qc7 {[%clk 0:02:50.2]} 15. Rxe7 {[%clk 0:02:40.3]}
15... Qd6 {[%clk 0:02:41.9]} 16. Re1 {[%clk 0:02:29.4]} 16... Be5 {[%clk
0:02:30.1]} 17. Qf3 {[%clk 0:02:10.6]} 17... Kg7 {[%clk 0:02:11.3]} 18. h4
{[%clk 0:02:01.3]} 18... h5 {[%clk 0:02:06.1]} 19. Qd5 {[%clk 0:01:53.3]} 19...
Qxd5 {[%clk 0:01:55.3]} 20. Bxd5 {[%clk 0:01:52.8]} 20... Bd6 {[%clk 0:01:55]}
21. Bd2 {[%clk 0:01:44.6]} 21... b5 {[%clk 0:01:45.1]} 22. Bc3+ {[%clk
0:01:44.1]} 22... Kg8 {[%clk 0:01:38.2]} 23. Bc6 {[%clk 0:01:44]} 23... Rfd8
{[%clk 0:01:25.3]} 24. Ba5 {[%clk 0:01:36]} 24... Nb6 {[%clk 0:01:11.2]} 25.
Bxb5 {[%clk 0:01:33.8]} 25... Rdc8 {[%clk 0:01:01.7]} 26. Ba6 {[%clk 0:01:30.4]}
26... Rc6 {[%clk 0:00:50.6]} 27. Bb5 {[%clk 0:01:20.1]} 27... Rcc8 {[%clk
0:00:46.5]} 28. a4 {[%clk 0:01:17.4]} 28... Nd5 {[%clk 0:00:40.5]} 29. Bd7
{[%clk 0:01:13]} 29... Rf8 {[%clk 0:00:30.4]} 30. b3 {[%clk 0:01:06.4]} 30...
Nb4 {[%clk 0:00:28.6]} 31. Re2 {[%clk 0:00:56]} 31... Kg7 {[%clk 0:00:20.3]} 32.
Rd1 {[%clk 0:00:53.2]} 32... Kf6 {[%clk 0:00:15.6]} 33. d4 {[%clk 0:00:52.6]}
33... cxd4 {[%clk 0:00:13.2]} 34. Rxd4 {[%clk 0:00:48.2]} 34... Bc5 {[%clk
0:00:12.6]} 35. Rc4 {[%clk 0:00:41.6]} 35... Bd6 {[%clk 0:00:12.3]} 36. Rd2
{[%clk 0:00:30.7]} 36... Be7 {[%clk 0:00:10.9]} 37. Bc7 {[%clk 0:00:21.2]} 37...
Rb7 {[%clk 0:00:09.5]} 38. c3 {[%clk 0:00:17]} 38... Na6 {[%clk 0:00:09.1]} 39.
Bd6 {[%clk 0:00:13.5]} 39... Rxd7 {[%clk 0:00:08]} 40. Be5+ {[%clk 0:00:12.1]}
40... Ke6 {[%clk 0:00:05.8]} 41. Rc6+ {[%clk 0:00:11.3]} 41... Bd6 {[%clk
0:00:03.7]} 42. Bxd6 {[%clk 0:00:07.6]} 42... Kf5 {[%clk 0:00:02.6]} 43. Bxf8
{[%clk 0:00:05.6]} 43... Rxd2 {[%clk 0:00:02.1]} 44. Rxa6 {[%clk 0:00:05.8]}
44... Kg4 {[%clk 0:00:02.2]} 45. Kg2 {[%clk 0:00:05]} 45... f5 {[%clk
0:00:02.1]} 46. Rxa7 {[%clk 0:00:05.4]} 46... f4 {[%clk 0:00:02.2]} 47. Re7
{[%clk 0:00:03.9]} 47... f3+ {[%clk 0:00:02.2]} 48. Kh2 {[%clk 0:00:02.8]} 48...
Rxf2+ {[%clk 0:00:02]} 49. Kg1 {[%clk 0:00:03.3]} 49... Ra2 {[%clk 0:00:01.2]}
50. Kf1 {[%clk 0:00:03.5]} 1-0